Cogmind - Beta 14 *** ADVENTURER MODE // 2024.09.17 @ 02:57:45 Player: Ms. V3-11A Result: Destroyed by as-77617 with Assembled Heavy Rifle Performance ------------- Evolutions (0) 0 Regions Visited (2) 400 Robots Destroyed (11) 55 Value Destroyed (285) 285 Prototype IDs (4) 80 Alien Tech Used (0) 0 Bonus (0) 0 TOTAL SCORE: 820 Bonus ------- None Cogmind --------- Core Integrity 0/250 Matter 285/300 Energy 62/100 System Corruption 0% Temperature Cool (0) Movement Core (200) Ox3 Location -10/Mines Parts ------- > --- POWER (1) -------- (None) > --- PROPULSION (2) --- (None) > --- UTILITY (2) ------ Medium Storage Unit Propulsion Shielding > --- WEAPON (2) ------- (None) > --- INVENTORY (10) --- Light Ion Engine Light Ion Engine Light Treads Light Treads High-capacity Battery (250) High-capacity Matter Pod (72) Medium Laser Light Assault Rifle Peak State ------------ > --- POWER ------------ Light Ion Engine > --- PROPULSION ------- Light Treads Light Treads > --- UTILITY ---------- Medium Storage Unit Propulsion Shielding > --- WEAPON ----------- EM Pulse Gun EM Pulse Gun > --- INVENTORY -------- Ion Engine Light Ion Engine Light Ion Engine High-capacity Battery High-capacity Matter Pod Propulsion Shielding EM Pulse Gun Medium Laser Small Laser Light Assault Rifle [Rating: 8] Favorites ----------- Power Light Ion Engine Engine Light Ion Engine Propulsion Light Treads Treads Light Treads Leg Aluminum Leg Utility Propulsion Shielding Storage Medium Storage Unit Protection Propulsion Shielding Weapon EM Pulse Gun Energy Gun EM Pulse Gun Launcher Grenade Launcher Build | -11 -10 -10 ------- Run | Yrd Mat Min Slots Evolved . | . . . Power . | . . . Propulsion . | . . . Utility . | . . . Weapon . | . . . Parts Attached 10 | 2 5 3 Power 1 | . 1 . Engine 1 | . 1 . Core . | . . . Reactor . | . . . Propulsion 3 | 2 1 . Treads 3 | 2 1 . Leg . | . . . Wheel . | . . . Hover . | . . . Flight . | . . . Utility 3 | . 2 1 Device . | . . . Storage 1 | . 1 . Processor . | . . . Hackware . | . . . Protection 2 | . 1 1 Artifact . | . . . Weapon 3 | . 1 2 Energy Gun 2 | . 1 1 Energy Cannon . | . . . Ballistic Gun . | . . . Ballistic Cannon . | . . . Launcher 1 | . . 1 Special Weapon . | . . . Impact Weapon . | . . . Slashing Weapon . | . . . Piercing Weapon . | . . . Special Melee Weapon . | . . . Unidentified Prototypes . | . . . Parts Lost 7 | . . 7 Power 1 | . . 1 Propulsion 2 | . . 2 Utility 1 | . . 1 Weapon 3 | . . 3 Highest Loss Streak 7 | . . 7 To Critical Strikes . | . . . Average Slot Usage (%) 95 | . 95 71 Engine 13 | . 14 7 Treads 27 | . 28 14 Storage 14 | . 14 14 Protection 9 | . 9 14 Energy Gun 27 | . 28 14 Peak Build Rating 8 | 6 8 8 Average Rating 7 | 5 7 5 On Entrance 6 | 6 6 8 Naked Turns . | . . . Heaviest Build 20 | 12 20 20 Greatest Support 40 | 40 40 40 Greatest Overweight (x) 3 | . . 3 Average Overweight (x) . | . . . Largest Inventory Capacity 10 | 8 10 10 Average Capacity 9 | 8 9 10 Most Carried 10 | 6 10 10 Average Carried 8 | 4 8 9 Final Capacity 10 | 8 10 10 Final Carried 10 | 2 10 8 Class Distribution -------------------- 100% | Mutant Dominant Class ---------------- Mutant | -10/Materials Mutant | -10/Mines Resources | -11 -10 -10 ----------- Run | Yrd Mat Min Matter Collected 340 | 200 140 . Remotely . | . . . Salvage Created 412 | . 392 20 Parts 26 | . 26 . Haulers Intercepted 1 | . 1 . Recyclers Shooed . | . . . Parts Field Recycled . | . . . Retrieved Matter . | . . . Parts Self-Destructed . | . . . Prevented . | . . . Kills | -11 -10 -10 ------- Run | Yrd Mat Min Combat Hostiles Destroyed 12 | . 9 3 Guns 8 | . 7 1 AOE 4 | . 2 2 Classes Destroyed 5 | . 4 1 Hauler 1 | . 1 . Watcher 1 | . 1 . Swarmer 3 | . 3 . Grunt 6 | . 6 . Assembled 3 | . . 3 Best Kill Streak 5 | . 5 3 Combat Bots Only 4 | . 4 3 Max Kills in Single Turn 1 | . 1 1 Gunslinging . | . . . Exploded 1 | . 1 1 Melee . | . . . Uniques/NPCs Destroyed . | . . . Combat | -11 -10 -10 -------- Run | Yrd Mat Min Hostile Shots Fired 115 | . 49 66 Missed 33 | . 17 16 Damage Taken 987 | . 326 661 Core 257 | . 75 182 Absorbed by Shields . | . . . Redirected to Shielding 79 | . 26 53 Ignored by Resistances 290 | . 99 191 Core Remaining (%) 100 | 100 . . Volleys Fired 31 | . 27 4 Largest 2 | . 2 1 Hottest 80 | . 80 40 Shots Fired 58 | . 54 4 Gun 56 | . 54 2 Cannon . | . . . Launcher 2 | . . 2 Special . | . . . Kinetic . | . . . Thermal . | . . . Explosive 2 | . . 2 Electromagnetic 56 | . 54 2 Robot Hit Streak 9 | . 9 5 Robot Miss Streak 2 | . 2 . Penetration Max . | . . . Secondary Targets 1 | . 1 . Max Gunslinging Chain 1 | . 1 . Shots Hit Robots 40 | . 36 4 Core Hits 23 | . 17 6 Critical Kills . | . . . Critical Parts Destroyed . | . . . Critical Strikes . | . . . Melee Attacks . | . . . Impact . | . . . Slashing . | . . . Piercing . | . . . Sneak Attacks . | . . . Combat Hostiles . | . . . Follow-up Attacks . | . . . Damage Inflicted 1148 | . 713 435 Guns 528 | . 507 21 Cannons . | . . . Explosions 620 | . 206 414 Melee . | . . . Ramming . | . . . Kinetic . | . . . Thermal 206 | . 206 . Explosive 414 | . . 414 Electromagnetic 528 | . 507 21 Impact . | . . . Slashing . | . . . Piercing . | . . . Highest Corruption . | . . . Average Corruption . | . . . Corruption Purged . | . . . Corruption Blocked . | . . . Overload Shots . | . . . Overflow Damage 29 | . 18 11 Projectiles . | . . . Explosions 29 | . 18 11 Melee . | . . . Knockbacks . | . . . Impact . | . . . Kinetic . | . . . Secondary . | . . . Self-Inflicted Damage 99 | . 42 57 Shots 3 | . 1 2 Rammed 1 | . 1 . Targets Rammed 1 | . 1 . Kicked . | . . . Crushed . | . . . Highest Temperature 219 | . 219 15 Average Temperature 68 | . 70 10 Received Heat Transfer 188 | . 168 20 Effects 1 | . 1 . Energy Bleed 1 | . 1 . Siege Activations . | . . . Robots Corrupted . | . . . Combat Hostiles . | . . . Parts Fried 2 | . 2 . Impact Corruptions . | . . . Robots Melted . | . . . Combat Hostiles . | . . . Parts Melted 1 | . 1 . Heat Transferred 300 | . 300 . Parts Sabotaged . | . . . Parts Stolen . | . . . Parts Stripped . | . . . Power Chain Reactions 4 | . 4 . Alert | -11 -10 -10 ------- Run | Yrd Mat Min Peak Influence 268 | . 268 18 Initial 4 | . . 4 Average 80 | . 81 4 Maximum Alert Level 1 | . 1 . Low Security (%) 81 | 100 80 100 Level 1 18 | . 19 . Level 2 . | . . . Level 3 . | . . . Level 4 . | . . . Level 5 . | . . . High Security . | . . . Max Security . | . . . Squads Dispatched 1 | . 1 . Investigation 1 | . 1 . Extermination . | . . . Reinforcement . | . . . Assault . | . . . Garrison . | . . . Intercept . | . . . Searches Triggered . | . . . Construction Impeded . | . . . Haulers Reinforced . | . . . Active Scanning Responses . | . . . Cargo Convoy Interrupts . | . . . Stealth | -11 -10 -10 --------- Run | Yrd Mat Min Distress Signals . | . . . Communications Jammed . | . . . Distress Signals . | . . . Times Spotted 36 | . 16 20 Peak Tracking Total 20 | . 4 20 Tactical Retreats 2 | . 2 . Traps | -11 -10 -10 ------- Run | Yrd Mat Min Traps Triggered 2 | . 2 . Indirectly . | . . . Trap Hack Attempts . | . . . Triggered . | . . . Disarmed . | . . . Reprogrammed . | . . . Reused . | . . . Traps Extracted . | . . . Installed . | . . . Triggered . | . . . Machines | -11 -10 -10 ---------- Run | Yrd Mat Min Machines Disabled 2 | . 2 . Max in Single Turn 1 | . 1 . Machines Repaired . | . . . Machines Dismantled . | . . . Machines Sabotaged . | . . . Overloaded Fab Kills . | . . . Hacking | -11 -10 -10 --------- Run | Yrd Mat Min Machines Accessed 6 | . 6 . Terminals 6 | . 6 . Fabricators . | . . . Repair Stations . | . . . Recycling Units . | . . . Scanalyzers . | . . . Garrison Access . | . . . Total Hacks 19 | . 19 . Successful 10 | . 10 . Failed 9 | . 9 . Catastrophic . | . . . Database Lockouts . | . . . Manual 8 | . 8 . Terminals 19 | . 19 . Fabricators . | . . . Repair Stations . | . . . Recycling Units . | . . . Scanalyzers . | . . . Garrison Access . | . . . Terminal Hacks 5 | . 5 . Robot Analysis 1 | . 1 . Prototype ID Bank 3 | . 3 . Branch Access Points 1 | . 1 . Fabricator Hacks . | . . . Repair Station Hacks . | . . . Recycling Unit Hacks . | . . . Scanalyzer . | . . . Garrison Access Hacks . | . . . Unauthorized Hacks 5 | . 5 . Terminals 5 | . 5 . Skim 5 | . 5 . Fabricators . | . . . Repair Stations . | . . . Recycling Units . | . . . Scanalyzers . | . . . Garrison Access . | . . . Data Cores Recovered . | . . . Used . | . . . Hacking Detections 6 | . 6 . Full Trace Events . | . . . Feedback Events . | . . . Feedback Blocked . | . . . Robot Schematics Acquired . | . . . Robots Built . | . . . Authchips . | . . . Time . | . . . Total Robot Build Rating . | . . . Part Schematics Acquired . | . . . Parts Built . | . . . Authchips . | . . . Time . | . . . Total Part Build Rating . | . . . Parts Repaired . | . . . Time . | . . . Parts Recycled . | . . . Recycled Matter . | . . . Retrieved Matter . | . . . Retrieved Components . | . . . Parts Scanalyzed . | . . . Part Schematics Acquired . | . . . Parts Damaged . | . . . Bothacking | -11 -10 -10 ------------ Run | Yrd Mat Min Used RIF Installer . | . . . Robots Hacked . | . . . Non-combat . | . . . Combat . | . . . Robot Hacks Applied . | . . . Relay Couplers Released . | . . . Fabnet Peak Effective % . | . . . Robots Rewired . | . . . Allies Hacked . | . . . Hacks Repelled . | . . . Allies | -11 -10 -10 -------- Run | Yrd Mat Min Total Allies 1 | . . 1 Largest Group 1 | . . 1 Highest-Rated Group 31 | . . 31 Highest-Rated Ally 31 | . . 31 Total Orders . | . . . Ally Attacks 4 | . . 4 Total Damage 86 | . . 86 Kills 3 | . . 3 Allies Corrupted . | . . . Allies Melted . | . . . Intel | -11 -10 -10 ------- Run | Yrd Mat Min Robot Analysis Total 1 | . 1 . Derelict Logs Recovered . | . . . Drone Launches . | . . . Drone Recoveries . | . . . Exploration | -11 -10 -10 ------------- Run | Yrd Mat Min Turns Passed 1361 | 5 1335 21 Spaces Moved 533 | 1 526 6 Core 1 | . . 1 Treads 532 | 1 526 5 Legs . | . . . Wheels . | . . . Hover . | . . . Flight . | . . . Fastest Speed 160 | 160 160 160 Average Speed 160 | 160 160 166 Slowest Speed 200 | 160 160 200 Overloaded Moves . | . . . Propulsion Burnouts . | . . . Robots Hopped . | . . . Cave-ins Triggered . | . . . Exploration Rate (%) 30 | 2 81 7 Regions Visited 2 Branch Regions 1 Pre-discovered Areas 2 | . 2 . Known Exits Taken 1 | . 1 . Unknown Exits Taken 1 | 1 . . Scrap Searched . | . . . Spaces Dug . | . . . Terrain Destroyed 24 | . 4 20 Melee . | . . . Projectile . | . . . AOE 24 | . 4 20 Terrain Rammed . | . . . Walls Destroyed . | . . . Machines Disabled . | . . . Actions | -11 -10 -10 --------- Run | Yrd Mat Min Total 985 | 6 966 13 Wait 391 | . 391 . Move 531 | . 525 6 Hop . | . . . Pick Up 12 | . 12 . Fast Attach 2 | . 2 . Attach 5 | 2 1 2 Detach . | . . . Swap 3 | . 2 1 Drop 9 | 4 5 . Fire 31 | . 27 4 Melee . | . . . Ram . | . . . Kick . | . . . Crush 1 | . 1 . Escape Stasis . | . . . Rewire . | . . . Trap . | . . . Miscellaneous . | . . . Route ------- -11/Scrapyard -10/Materials (discovered 4 exits: *Mat x3 / *Min) -10/Mines History --------- Turn | Location | Event 6 | -11/Scrapyard | Discovered new exit (range 0) 6 | -11/Scrapyard | Entered Materials 98 | -10/Materials | Identified exit to Mines 311 | -10/Materials | Build established: Mutant 617 | -10/Materials | Discovered new exit (range 14) 839 | -10/Materials | Identified exit to Materials 902 | -10/Materials | Learned 2 Mines zone layouts 957 | -10/Materials | Learned location of Mines (-9) 1002 | -10/Materials | Learned location of 1 exit from Recycling 1059 | -10/Materials | Loaded intel: 9 trap records 1092 | -10/Materials | Learned 4 Subcaves zone layouts 1217 | -10/Materials | Learned location of Storage (-9) 1341 | -10/Materials | Entered Mines 1342 | -10/Mines | Assembled infested the area 1344 | -10/Mines | Received a Mining Laser from a helpful Derelict 1352 | -10/Mines | Core integrity fell below 50% 1361 | -10/Mines | Core integrity fell below 20% 1362 | -10/Mines | Destroyed by as-77617 with Assembled Heavy Rifle Last Messages --------------- 01346_ Destroyed Asb. F-torch. 01346_ as-46006 destroyed. 01347_ 21-Q62(g): "You're apparently new around these parts, I'll cover you." 01348_ as-20435 destroyed. 01348_ as-63900 destroyed. 01350_ Ion Engine destroyed. 01350_ Propulsion Shielding destroyed. 01351_ Grenade Launcher destroyed. 01355_ EM Pulse Gun destroyed. 01356_ as-52440 sneak attacks. 01356_ T-07 Excavator destroyed. 01356_ as-83442 destroyed. 01357_ The unstable cave ceiling collapses. 01357_ as-72286 destroyed. 01358_ 21-Q62(g): "Mining lasers are a lot more useful than you might think..." 01358_ 21-Q62(g) destroyed. 01359_ Lgt. Treads destroyed. 01361_ EM Pulse Gun destroyed. Map ----- +----------------------------------------------------+ | | | | | | | | | | | | | | | | | | | | | ?????????????????????????????????????????????????? | | ?????????????????????????????????????????????????? | | ?????????????????????????????????????????????????? | | ?????????????????????????????????????????????????? | | ?????????????????????????????????????????????????? | | ?????????????????????????????????????????????????? | | ?????????????????????????????????????????????????? | | ??????????????#??????????????????????????????????? | | ??????????????# ??????####???????????????????????? | | ?????????????## ?##### ###?????????????????????? | | ????????## ## # =%!##????????????????????? | | ??????? " #a aaa! ##???????????????????? | | ?????????# %aaaa #???????????????????? | | ?????????# % aa*! #???????????????????? | | ?????????# # [%= ##??????????????????? | | ??????? # #%a@ | #??????????????????? | | ???????? ??####a%a #??????????????????? | | ????????## ???????# ##??????????????????? | | ?????????#??????????# #???????????????????? | | ????????????????????# #???????????????????? | | ????????????????????## #???????????????????? | | ?????????????????????#### #???????????????????? | | ????????????????????????## ##???????????????????? | | ??????????????????????????###????????????????????? | | ?????????????????????????????????????????????????? | | ???????# #?## ##???????????# #??###???????? | | ???????# ##?####?#######????## #### ##??????? | | ???????# ##?????# #?????# ## ##?????? | | ???????# ###???# #????## #####?? | | ???????# ##??# """ #???## ##? | | ??????? ##?# """ #??## #? | | ??????? #?# """ #?## #### #? | | ??????? #?# #?# ##??## ##? | | ??????? ##?#### ##?# #######?#####?? | | ???????## ## #?????# #??# ##?## ##??????? | | ???????##### ## #?????# #??# ##?## #??????? | | ???????????# ## #?????# #??## ##??# #??????? | | ???????##### ## #?????# #???# ##???# ##?????? | | ??????? ## #?????# #???# ###### ###???? | | ??????? ## #?????# ##### ##??? | +----------------------------------------------------+ Best States ------------- Heat Dissipation 25 Energy Generation 10 Energy Capacity 250 Matter Stores 300 Matter Capacity 300 Sight Range 16 Terrain Scan Density 10 Resistance: KI 20 Resistance: TH 20 Resistance: EX 20 Resistance: EM 20 Resistance: I 20 Resistance: S 20 Resistance: P 20 Propulsion Shielding 33 Evasion (%) 40 Recoil Reduction 2 Offensive Hacking 10 Item Schematics ----------------- None Robot Schematics ------------------ None Fabricated ------------ Nothing Alien Tech Used ----------------- None Achievements -------------- None Challenges ------------ None Game ------ Seed HypervelocityPhysicsRail Manual? 0 Play Time 00:09:30 Cumulative 392.0 hours Start 2024.09.17 @ 02:44:56 End 2024.09.17 @ 02:57:45 Sessions 1 Manual Loads 0 Difficulty Adventurer Special Mode None Game No. 292 Rogue 63 Adventurer 203 Explorer 26 Win Type - Total 2 Types 2/0/0/0/0/0/0/0/0 Lore% 81 Gallery% 78 Achievement% 68 Wizard Run 0 Options --------- Layout 2 ASCII 0 Keyboard 0 Movement Arrows Keybinds 0 Fullscreen 0 Font 18/CogNarrow Map View 64x51 Zoom Use 0% Tactical HUD 1 Map Filters NONE Filters BRIGHTNESS(115)|SATURATION(100)|LOW_CONTRAST(0,16,30) Steam 1 RUN: 840b83d9-5902-41b7-89ec-ce625b48c3a5